fUST/lending_fUST_20250208
["ID","MTS","AMOUNT","RATE_DAILY","PERIOD"]
[352105717,1738949452545,-500.0,0.00011232,2]
[352105718,1738949452557,-2028.94,0.00011232,2]
[352105719,1738949452570,-500.0,0.00011232,2]
[352105720,1738949452581,-2760.23,0.00011232,2]
[352105721,1738949452592,-1065.04,0.00011232,2]
[352105722,1738949452604,-500.0,0.00011232,2]
[352105723,1738949452616,-500.0,0.00011232,2]
[352105724,1738949452628,-280.36,0.00011232,2]
[352105725,1738949452640,-500.0,0.00011232,2]
[352105726,1738949452653,-500.0,0.00011232,2]
[352105727,1738949452664,-500.0,0.00011232,2]
[352105728,1738949452675,-630.87,0.00011232,2]
[352105729,1738949452687,-500.0,0.00011232,2]
[352105730,1738949452699,-500.0,0.00011232,2]
[352105731,1738949452713,-500.0,0.00011232,2]
[352105732,1738949452725,-5028.75,0.00011232,2]
[352105733,1738949452738,-1490.32,0.00011232,2]
[352105734,1738949452751,-527.2,0.00011232,2]
[352105735,1738949452764,-500.0,0.00011232,2]
[352105736,1738949452777,-501.57415247,0.00011232,2]
[352105737,1738949452790,-1043.44,0.00011232,2]
[352105738,1738949452803,-567.39,0.00011232,2]
[352105739,1738949452815,-500.0,0.00011232,2]
[352105740,1738949452829,-500.0,0.00011232,2]
[352105741,1738949452841,-589.88,0.00011232,2]
[352105742,1738949452853,-15463.9,0.00011232,2]
[352105743,1738949452864,-500.0,0.00011232,2]
[352105744,1738949452876,-561.48157875,0.00011232,2]
[352105745,1738949452888,-2657.63,0.00011232,2]
[352105746,1738949452900,-548.31,0.00011232,2]
[352105747,1738949452912,-500.0,0.00011232,2]
[352105748,1738949452924,-536.46751517,0.00011232,2]
[352105749,1738949452936,-655.2,0.00011232,2]
[352105750,1738949452948,-456.78622391,0.00011232,2]
[352105751,1738949452960,-500.0,0.00011232,2]
[352105752,1738949452975,-500.0,0.00011232,2]
[352105753,1738949452987,-1127.86,0.00011232,2]
[352105754,1738949452999,-13264.03974987,0.00011284,2]
[352105755,1738949453011,-151.0,0.000113,2]
[352105756,1738949453024,-151.0,0.000113,2]
[352105757,1738949453036,-151.0,0.000113,2]
[352105758,1738949453048,-151.0,0.00011315,2]
[352105759,1738949453061,-255.169641,0.00011315,2]
[352105760,1738949453073,-255.169641,0.00011315,2]
[352105761,1738949453086,-734.742668,0.00011315,2]
[352105762,1738949453098,-734.742668,0.00011315,2]
[352105763,1738949453111,-334.405505,0.00011315,2]
[352105764,1738949453124,-334.405505,0.00011315,2]
[352105765,1738949453137,-151.0,0.00011369,2]
[352105766,1738949453150,-151.0,0.00011369,2]
[352105767,1738949453162,-151.0,0.00011369,2]
[352105768,1738949453175,-500.0,0.00011369,2]
[352105769,1738949453188,-500.0,0.00011369,2]
[352105770,1738949453200,-531.31439289,0.00011369,2]
[352105771,1738949453215,-500.0,0.00011369,2]
[352105772,1738949453228,-500.0,0.00011369,2]
[352105773,1738949453240,-500.0,0.00011369,2]
[352105774,1738949453253,-500.0,0.00011369,2]
[352105775,1738949453269,-500.0,0.00011369,2]
[352105776,1738949453281,-541.97166922,0.00011369,2]
[352105777,1738949453293,-500.0,0.00011369,2]
[352105778,1738949453307,-500.0,0.00011369,2]
[352105779,1738949453319,-500.0,0.00011369,2]
[352105780,1738949453332,-500.0,0.00011369,2]
[352105781,1738949453345,-500.0,0.00011369,2]
[352105782,1738949453358,-500.0,0.00011369,2]
[352105783,1738949453370,-500.0,0.00011369,2]
[352105784,1738949453382,-500.0,0.00011369,2]
[352105785,1738949453395,-500.0,0.00011369,2]
[352105786,1738949453408,-500.0,0.00011369,2]
[352105787,1738949453420,-500.0,0.00011369,2]
[352105788,1738949453432,-500.0,0.00011369,2]
[352105789,1738949453440,-500.0,0.00011369,2]
[352105790,1738949453450,-500.0,0.00011369,2]
[352105791,1738949453460,-500.0,0.00011369,2]
[352105792,1738949453470,-500.0,0.00011369,2]
[352105793,1738949453480,-500.0,0.00011369,2]
[352105794,1738949453489,-500.0,0.00011369,2]
[352105795,1738949453498,-500.0,0.00011369,2]
[352105796,1738949453508,-500.0,0.00011369,2]
[352105797,1738949453517,-500.0,0.00011369,2]
[352105798,1738949453526,-500.0,0.00011369,2]
[352105799,1738949453732,-500.0,0.00011369,2]
[352105800,1738949453762,-500.0,0.00011369,2]
[352105801,1738949453775,-500.0,0.00011369,2]
[352105802,1738949453785,-500.0,0.00011369,2]
[352105803,1738949453795,-201.88561725,0.00011369,2]
[352105804,1738949453804,-500.0,0.00011369,2]
[352105805,1738949453813,-500.0,0.00011369,2]
[352105806,1738949453822,-500.0,0.00011369,2]
[352105807,1738949453832,-500.0,0.00011369,2]
[352105808,1738949453841,-500.0,0.00011369,2]
[352105809,1738949453850,-500.0,0.00011369,2]
[352105810,1738949453859,-500.0,0.00011369,2]
[352105811,1738949453868,-500.0,0.00011369,2]
[352105812,1738949453877,-500.0,0.00011369,2]
[352105813,1738949453886,-500.0,0.00011369,2]
[352105814,1738949453895,-500.0,0.00011369,2]
[352105815,1738949453904,-747.0,0.00011369,2]
[352105816,1738949453913,-500.0,0.00011369,2]
[352105817,1738949453923,-500.0,0.00011369,2]
[352105818,1738949453933,-660.34,0.00011369,2]
[352105819,1738949453942,-526.23267628,0.00011369,2]
[352105820,1738949453951,-500.0,0.00011369,2]
[352105821,1738949453960,-500.0,0.00011369,2]
[352105822,1738949453972,-500.0,0.00011369,2]
[352105823,1738949453982,-500.0,0.00011369,2]
[352105824,1738949453991,-500.0,0.00011369,2]
[352105825,1738949454000,-500.0,0.00011369,2]
[352105826,1738949454009,-500.0,0.00011369,2]
[352105827,1738949454018,-788.97,0.00011369,2]
[352105828,1738949454028,-500.0,0.00011369,2]
[352105829,1738949454037,-500.0,0.00011369,2]
[352105830,1738949454047,-500.0,0.00011369,2]
[352105831,1738949454057,-295.52794193,0.00011369,2]
[352105832,1738949454066,-500.0,0.00011369,2]
[352105833,1738949454075,-500.0,0.00011369,2]
[352105834,1738949454085,-500.0,0.00011369,2]
[352105835,1738949454094,-500.0,0.00011369,2]
[352105836,1738949454104,-500.0,0.00011369,2]
[352105837,1738949454113,-500.0,0.00011369,2]
[352105838,1738949454123,-500.0,0.00011369,2]
[352105839,1738949454132,-331.05,0.00011369,2]
[352105840,1738949454142,-500.0,0.00011369,2]
[352105841,1738949454151,-500.0,0.00011369,2]
[352105842,1738949454161,-500.0,0.00011369,2]
[352105843,1738949454170,-500.0,0.00011369,2]
[352105844,1738949454179,-500.0,0.00011369,2]
[352105845,1738949454189,-500.0,0.00011369,2]
[352105846,1738949454198,-500.0,0.00011369,2]
[352105847,1738949454208,-901.78,0.00011369,2]
[352105848,1738949454220,-500.0,0.00011369,2]
[352105849,1738949454229,-151.0,0.00011369,2]
[352105850,1738949454241,-1223.32,0.00011369,2]
[352105851,1738949454256,-1498.95,0.00011369,2]
[352105852,1738949454265,-500.0,0.00011369,2]
[352105853,1738949454275,-500.0,0.00011369,2]
[352105854,1738949454284,-500.0,0.00011369,2]
[352105855,1738949454295,-500.0,0.00011369,2]
[352105856,1738949454304,-500.0,0.00011369,2]
[352105857,1738949454314,-500.0,0.00011369,2]
[352105858,1738949454323,-500.0,0.00011369,2]
[352105859,1738949454334,-500.0,0.00011369,2]
[352105860,1738949454344,-766.69,0.00011369,2]
[352105861,1738949454353,-500.0,0.00011369,2]
[352105862,1738949454363,-813.992435,0.00011369,2]
[352105863,1738949454373,-813.992435,0.00011369,2]
[352105864,1738949454382,-539.74,0.00011369,2]
[352105865,1738949454392,-234.99353,0.00011369,2]
[352105866,1738949454401,-643.97,0.00011369,2]
[352105867,1738949454410,-234.99353,0.00011369,2]
[352105868,1738949454420,-500.0,0.00011369,2]
[352105869,1738949454429,-1434.51,0.00011369,2]
[352105870,1738949454439,-500.0,0.00011369,2]
[352105871,1738949454448,-500.0,0.00011369,2]
[352105872,1738949454459,-898.49,0.00011369,2]
[352105873,1738949454470,-500.0,0.00011369,2]
[352105874,1738949454480,-557.83,0.00011369,2]
[352105875,1738949454489,-500.0,0.00011369,2]
[352105876,1738949454499,-358.88,0.00011369,2]
[352105877,1738949454509,-500.0,0.00011369,2]
[352105878,1738949454519,-500.0,0.00011369,2]
[352105879,1738949454528,-1101.319346,0.00011369,2]
[352105880,1738949454537,-500.0,0.00011369,2]
[352105881,1738949454547,-1101.319346,0.00011369,2]
[352105882,1738949454556,-274.656294,0.00011369,2]
[352105883,1738949454566,-274.656294,0.00011369,2]
[352105884,1738949454576,-1068.79,0.00011369,2]
[352105885,1738949454586,-500.0,0.00011369,2]
[352105886,1738949454595,-151.0,0.00011369,2]
[352105887,1738949454605,-500.0,0.00011369,2]
[352105888,1738949454615,-500.0,0.00011369,2]
[352105889,1738949454624,-934.63,0.00011369,2]
[352105890,1738949454634,-500.0,0.00011369,2]
[352105891,1738949454644,-500.0,0.00011369,2]
[352105892,1738949454653,-726.64,0.00011369,2]
[352105893,1738949454663,-500.0,0.00011369,2]
[352105894,1738949454672,-634.96,0.00011369,2]
[352105895,1738949454682,-500.0,0.00011369,2]
[352105896,1738949454692,-1071.768629,0.00011369,2]
[352105897,1738949454701,-1071.768629,0.00011369,2]
[352105898,1738949454711,-500.0,0.00011369,2]
[352105899,1738949454721,-500.0,0.00011369,2]
[352105900,1738949454731,-379.28447923,0.00011369,2]
[352105901,1738949454741,-500.0,0.00011369,2]
[352105902,1738949454750,-619.4726,0.00011369,2]
[352105903,1738949454761,-500.0,0.00011369,2]
[352105904,1738949454770,-500.0,0.00011369,2]
[352105905,1738949454780,-587.86,0.00011369,2]
[352105906,1738949454789,-500.0,0.00011369,2]
[352105907,1738949454801,-500.0,0.00011369,2]
[352105908,1738949454810,-615.81,0.00011369,2]
[352105909,1738949454820,-500.0,0.00011369,2]
[352105910,1738949454829,-1231.23,0.00011369,2]
[352105911,1738949454838,-500.0,0.00011369,2]
[352105912,1738949454848,-151.0,0.00011369,2]
[352105913,1738949454857,-859.46,0.00011369,2]
[352105914,1738949454866,-500.0,0.00011369,2]
[352105915,1738949454876,-853.6,0.00011369,2]
[352105916,1738949454885,-856.56,0.00011369,2]
[352105917,1738949454894,-500.0,0.00011369,2]
[352105918,1738949454904,-500.0,0.00011369,2]
[352105919,1738949454914,-13918.92,0.00011369,2]
[352105920,1738949454923,-997.51,0.00011369,2]
[352105921,1738949454933,-500.0,0.00011369,2]
[352105922,1738949454942,-500.0,0.00011369,2]
[352105923,1738949454951,-500.0,0.00011369,2]
[352105924,1738949454961,-500.0,0.00011369,2]
[352105925,1738949454972,-500.0,0.00011369,2]
[352105926,1738949454981,-500.0,0.00011369,2]
[352105927,1738949454991,-500.0,0.00011369,2]
[352105928,1738949455001,-3298.42,0.00011369,2]
[352105929,1738949455011,-1863.64,0.00011369,2]
[352105930,1738949455020,-542.71,0.00011369,2]
[352105931,1738949455030,-773.75,0.00011369,2]
[352105932,1738949455040,-500.0,0.00011369,2]
[352105933,1738949455049,-500.0,0.00011369,2]
[352105934,1738949455059,-500.0,0.00011369,2]
[352105935,1738949455068,-753.62,0.00011369,2]
[352105936,1738949455078,-6193.01,0.00011369,2]
[352105937,1738949455087,-17935.06,0.00011369,2]
[352105938,1738949455097,-3389.26,0.00011369,2]
[352105939,1738949455106,-500.0,0.00011369,2]
[352105940,1738949455115,-565.85,0.00011369,2]
[352105941,1738949455124,-500.0,0.00011369,2]
[352105942,1738949455134,-689.5,0.00011369,2]
[352105943,1738949455143,-500.0,0.00011369,2]
[352105944,1738949455153,-342.89392352,0.00011369,2]
[352105945,1738949455163,-500.0,0.00011369,2]
[352105946,1738949455172,-5125.12,0.00011369,2]
[352105947,1738949455181,-1043.84,0.00011369,2]
[352105948,1738949455191,-1682.91,0.00011369,2]
[352105949,1738949455201,-500.0,0.00011369,2]
[352105950,1738949455211,-500.0,0.00011369,2]
[352105951,1738949455223,-1498.46,0.00011369,2]
[352105952,1738949455233,-2077.47,0.00011369,2]
[352105953,1738949455243,-567.06,0.00011369,2]
[352105954,1738949455253,-500.0,0.00011369,2]
[352105955,1738949455265,-201.3442892,0.00011369,2]
[352105956,1738949455275,-4685.86,0.00011369,2]
[352105957,1738949455285,-500.0,0.00011369,2]
[352105958,1738949455294,-996.6,0.00011369,2]
[352105959,1738949455304,-500.0,0.00011369,2]
[352105960,1738949455314,-500.0,0.00011369,2]
[352105961,1738949455323,-500.0,0.00011369,2]
[352105962,1738949455333,-8814.43,0.00011369,2]
[352105963,1738949455346,-674.74,0.00011369,2]
[352105964,1738949455355,-1145.19,0.00011369,2]
[352105965,1738949455365,-910.53,0.00011369,2]
[352105966,1738949455374,-500.0,0.00011369,2]
[352105967,1738949455384,-501.6,0.00011369,2]
[352105968,1738949455393,-395.194243,0.00011369,2]
[352105969,1738949455403,-805.13,0.00011369,2]
[352105970,1738949455412,-395.194243,0.00011369,2]
[352105971,1738949455421,-10091.66,0.00011369,2]
[352105972,1738949455430,-2113.925836,0.00011369,2]
[352105973,1738949455441,-500.0,0.00011369,2]
[352105974,1738949455450,-1350.155259,0.00011369,2]
[352105975,1738949455460,-1783.93,0.00011369,2]
[352105976,1738949455471,-1350.155259,0.00011369,2]
[352105977,1738949455481,-2113.925836,0.00011369,2]
[352105978,1738949455491,-557.93059378,0.00011369,2]
[352105979,1738949455500,-500.0,0.00011369,2]
[352105980,1738949455510,-2101.59,0.00011369,2]
[352105981,1738949455520,-500.0,0.00011369,2]
[352105982,1738949455530,-4366.96,0.00011369,2]
[352105983,1738949455540,-565.39,0.00011369,2]
[352105984,1738949455550,-500.0,0.00011369,2]
[352105985,1738949455559,-856.95,0.00011369,2]
[352105986,1738949455569,-500.0,0.00011369,2]
[352105987,1738949455579,-5263.82,0.00011369,2]
[352105988,1738949455588,-500.0,0.00011369,2]
[352105989,1738949455598,-500.0,0.00011369,2]
[352105990,1738949455608,-500.0,0.00011369,2]
[352105991,1738949455617,-151.0,0.00011369,2]
[352105992,1738949455627,-500.0,0.00011369,2]
[352105993,1738949455637,-2403.82,0.00011369,2]
[352105994,1738949455646,-500.0,0.00011369,2]
[352105995,1738949455656,-151.0,0.00011369,2]
[352105996,1738949455666,-500.0,0.00011369,2]
[352105997,1738949455675,-500.0,0.00011369,2]
[352105998,1738949455685,-500.0,0.00011369,2]
[352105999,1738949455694,-2013.74,0.00011369,2]
[352106000,1738949455704,-500.0,0.00011369,2]
[352106001,1738949455713,-500.0,0.00011369,2]
[352106002,1738949455723,-500.0,0.00011369,2]
[352106003,1738949455733,-500.0,0.00011369,2]
[352106004,1738949455742,-1907.75,0.00011369,2]
[352106005,1738949455752,-1015.7,0.00011369,2]
[352106006,1738949455762,-500.0,0.00011369,2]
[352106007,1738949455771,-500.0,0.00011369,2]
[352106008,1738949455781,-411.0726,0.00011369,2]
[352106009,1738949455792,-1489.14,0.00011369,2]
[352106010,1738949455802,-544.14,0.00011369,2]
[352106011,1738949455812,-806.88,0.00011369,2]
[352106012,1738949455821,-42882.94,0.00011369,2]
[352106013,1738949455831,-411.0726,0.00011369,2]
[352106014,1738949455841,-6548.18,0.00011369,2]
[352106015,1738949455851,-500.0,0.00011369,2]
[352106016,1738949455860,-500.0,0.00011369,2]
[352106017,1738949455870,-1957.41,0.00011369,2]
[352106018,1738949455880,-500.0,0.00011369,2]
[352106019,1738949455889,-500.0,0.00011369,2]
[352106020,1738949455898,-500.0,0.00011369,2]
[352106021,1738949455908,-2028.94,0.00011369,2]
[352106022,1738949455918,-2760.23,0.00011369,2]
[352106023,1738949455927,-1065.04,0.00011369,2]
[352106024,1738949455937,-506.97938863,0.00011369,2]
[352106025,1738949455946,-500.0,0.00011369,2]
[352106026,1738949455956,-500.0,0.00011369,2]
[352106027,1738949455967,-500.0,0.00011369,2]
[352106028,1738949455976,-630.87,0.00011369,2]
[352106029,1738949455986,-500.0,0.00011369,2]
[352106030,1738949455996,-500.0,0.00011369,2]
[352106031,1738949456005,-500.0,0.00011369,2]
[352106032,1738949456015,-5028.75,0.00011369,2]
[352106033,1738949456024,-1490.32,0.00011369,2]
[352106034,1738949456034,-729.946372,0.00011369,2]
[352106035,1738949456043,-527.2,0.00011369,2]
[352106036,1738949456053,-500.0,0.00011369,2]
[352106037,1738949456062,-1043.44,0.00011369,2]
[352106038,1738949456072,-729.946372,0.00011369,2]
[352106039,1738949456081,-567.39,0.00011369,2]
[352106040,1738949456090,-589.88,0.00011369,2]
[352106041,1738949456100,-7416.60152361,0.00011369,2]
[352106042,1738949456595,-500.0,0.00010958,2]
[352106043,1738949456604,-500.0,0.00010958,2]
[352106044,1738949456613,-500.0,0.00010958,2]
[352106045,1738949456623,-500.0,0.00011095,2]
[352106046,1738949456632,-186.94886475,0.00011095,2]
[352106047,1738949457183,-500.0,0.00010958,2]
[352106048,1738949457193,-313.05113525,0.00011095,2]
[352106049,1738949457203,-500.0,0.00011095,2]
[352106050,1738949457214,-500.0,0.00011232,2]
[352106051,1738949457228,-500.0,0.00011232,2]
[352106052,1738949457238,-353.896342,0.00011232,2]
[352106053,1738949457248,-4415.1464742,0.00011369,2]
[352106054,1738949457681,-420.23198333,0.00010957,2]
[352106055,1738949457692,-218.76801667,0.00010958,2]
[352106057,1738949785379,452.22,0.00019199,120]
[352106058,1738949839903,298.0,0.000192,120]
[352106059,1738949846207,298.0,0.00016,90]
[352106061,1738950614804,1000.0,0.00019,120]
[352106147,1738950632491,-300.0,9.935e-05,2]
[352106148,1738950632500,-24900.0,9.936e-05,2]
[352106149,1738950632510,-2185.9663213,9.958e-05,2]
[352106150,1738950632519,-322.0426181,0.0001,3]
[352106151,1738950632528,-154.0,0.00010591,2]
[352106152,1738950632537,-154.0,0.00010591,2]
[352106153,1738950632546,-154.0,0.00010591,2]
[352106154,1738950632555,-267.953,0.00010739,2]
[352106155,1738950632564,-163.63404862,0.00010858,2]
[352106156,1738950632573,-420.0,0.00010929,2]
[352106157,1738950632582,-151.115,0.0001093,2]
[352106158,1738950632592,-500.0,0.00010953,2]
[352106159,1738950632601,-500.0,0.00010953,2]
[352106160,1738950632610,-399.39812613,0.00010953,2]
[352106161,1738950632619,-500.0,0.00010953,2]
[352106162,1738950632628,-500.0,0.00010953,2]
[352106163,1738950632638,-425.1958186,0.00010953,2]
[352106164,1738950632651,-500.0,0.00010953,2]
[352106165,1738950632660,-500.0,0.00010953,2]
[352106166,1738950632669,-1626.03245193,0.00010954,2]
[352106167,1738950632679,-8349.74422237,0.00010957,2]
[352106168,1738950632689,-173.20462889,0.00010957,2]
[352106169,1738950632698,-500.0,0.00010957,2]
[352106170,1738950632708,-285.79951552,0.00010957,2]
[352106171,1738950632717,-500.0,0.00010958,2]
[352106172,1738950632729,-500.0,0.00010958,2]
[352106173,1738950632738,-314.28,0.00010958,2]
[352106174,1738950632748,-500.0,0.00010958,2]
[352106175,1738950632757,-500.0,0.00010958,2]
[352106176,1738950632767,-500.0,0.00010958,2]
[352106177,1738950632776,-510.29593004,0.00010958,2]
[352106178,1738950632785,-500.0,0.00010958,2]
[352106179,1738950632795,-426.52110053,0.00010958,2]
[352106180,1738950632805,-189.36543911,0.00010958,2]
[352106181,1738950632814,-559.44766365,0.00010958,2]
[352106182,1738950632824,-500.0,0.00010958,2]
[352106183,1738950632834,-504.73,0.00010958,2]
[352106184,1738950632844,-500.0,0.00010958,2]
[352106185,1738950632853,-500.0,0.00010958,2]
[352106186,1738950632863,-500.0,0.00010958,2]
[352106187,1738950632871,-510.38218126,0.00010958,2]
[352106188,1738950632881,-500.6529492,0.00010958,2]
[352106189,1738950632890,-500.0,0.00010958,2]
[352106190,1738950632899,-270.47664438,0.00010958,2]
[352106191,1738950632909,-500.0,0.00010958,2]
[352106192,1738950632918,-500.0,0.00010958,2]
[352106193,1738950632927,-500.0,0.00010958,2]
[352106194,1738950632936,-500.0,0.00010958,2]
[352106195,1738950632945,-500.0,0.00010958,2]
[352106196,1738950632955,-500.0,0.00010958,2]
[352106197,1738950632963,-500.0,0.00010958,2]
[352106198,1738950632972,-500.0,0.00010958,2]
[352106199,1738950632983,-500.0,0.00010958,2]
[352106200,1738950632992,-500.0,0.00010958,2]
[352106201,1738950633001,-500.0,0.00010958,2]
[352106202,1738950633011,-500.0,0.00010958,2]
[352106203,1738950633020,-500.0,0.00010958,2]
[352106204,1738950633029,-500.0,0.00010958,2]
[352106205,1738950633039,-500.0,0.00010958,2]
[352106206,1738950633048,-500.0,0.00010958,2]
[352106207,1738950633057,-500.0,0.00010958,2]
[352106208,1738950633066,-504.24523206,0.00010958,2]
[352106209,1738950633075,-500.0,0.00010958,2]
[352106210,1738950633084,-500.0,0.00010958,2]
[352106211,1738950633093,-500.0,0.00010958,2]
[352106212,1738950633103,-500.0,0.00010958,2]
[352106213,1738950633114,-500.0,0.00010958,2]
[352106214,1738950633124,-540.07424812,0.00010958,2]
[352106215,1738950633133,-500.0,0.00010958,2]
[352106216,1738950633143,-500.0,0.00010958,2]
[352106217,1738950633152,-500.0,0.00010958,2]
[352106218,1738950633162,-500.0,0.00010958,2]
[352106219,1738950633171,-500.0,0.00010958,2]
[352106220,1738950633181,-500.0,0.00010958,2]
[352106221,1738950633190,-500.0,0.00010958,2]
[352106222,1738950633199,-500.0,0.00010958,2]
[352106223,1738950633209,-500.0,0.00010958,2]
[352106224,1738950633218,-500.0,0.00010958,2]
[352106225,1738950633227,-500.0,0.00010958,2]
[352106226,1738950633237,-500.0,0.00010958,2]
[352106227,1738950633247,-500.0,0.00010958,2]
[352106228,1738950633256,-500.0,0.00010958,2]
[352106229,1738950633266,-500.0,0.00010958,2]
[352106230,1738950633276,-500.0,0.00010958,2]
[352106231,1738950633285,-500.0,0.00010958,2]
[352106232,1738950633295,-632.82,0.00010958,2]
[352106233,1738950633305,-500.0,0.00010958,2]
[352106234,1738950633315,-500.0,0.00010958,2]
[352106235,1738950633325,-500.0,0.00010958,2]
[352106236,1738950633334,-500.0,0.00010958,2]
[352106237,1738950633344,-500.0,0.00010958,2]
[352106238,1738950633354,-500.0,0.00010958,2]
[352106239,1738950633364,-500.0,0.00010958,2]
[352106240,1738950633374,-500.0,0.00010958,2]
[352106241,1738950633384,-500.0,0.00010958,2]
[352106242,1738950633392,-500.0,0.00010958,2]
[352106243,1738950633402,-500.0,0.00010958,2]
[352106244,1738950633411,-500.0,0.00010958,2]
[352106245,1738950633421,-500.0,0.00010958,2]
[352106246,1738950633430,-500.0,0.00010958,2]
[352106247,1738950633440,-500.0,0.00010958,2]
[352106248,1738950633449,-500.0,0.00010958,2]
[352106249,1738950633458,-500.0,0.00010958,2]
[352106250,1738950633469,-500.0,0.00010958,2]
[352106251,1738950633480,-500.0,0.00010958,2]
[352106252,1738950633489,-500.0,0.00010958,2]
[352106253,1738950633499,-500.0,0.00010958,2]
[352106254,1738950633509,-500.0,0.00010958,2]
[352106255,1738950633519,-500.0,0.00010958,2]
[352106256,1738950633528,-500.0,0.00010958,2]
[352106257,1738950633537,-500.0,0.00010958,2]
[352106258,1738950633546,-281.25465908,0.00010958,2]
[352106259,1738950633555,-500.0,0.00010958,2]
[352106260,1738950633564,-500.0,0.00010958,2]
[352106261,1738950633573,-500.0,0.00010958,2]
[352106262,1738950633583,-574.21,0.00010958,2]
[352106263,1738950633592,-500.0,0.00010958,2]
[352106264,1738950633602,-500.0,0.00010958,2]
[352106265,1738950633611,-500.0,0.00010958,2]
[352106266,1738950633620,-500.0,0.00010958,2]
[352106267,1738950633630,-500.0,0.00010958,2]
[352106268,1738950633639,-500.0,0.00010958,2]
[352106269,1738950633652,-500.0,0.00010958,2]
[352106270,1738950633661,-500.0,0.00010958,2]
[352106271,1738950633670,-501.66496697,0.00010958,2]
[352106272,1738950633680,-500.0,0.00010958,2]
[352106273,1738950633690,-500.0,0.00010958,2]
[352106274,1738950633699,-500.0,0.00010958,2]
[352106275,1738950633708,-442.08970102,0.00010958,2]
[352106276,1738950633718,-1436.5,0.00010958,2]
[352106277,1738950633729,-500.0,0.00010958,2]
[352106278,1738950633739,-1000.82,0.00010958,2]
[352106279,1738950633748,-500.0,0.00010958,2]
[352106280,1738950633758,-500.0,0.00010958,2]
[352106281,1738950633768,-623.65312254,0.00010958,2]
[352106282,1738950633777,-507.34960727,0.00010958,2]
[352106283,1738950633787,-500.0,0.00010958,2]
[352106284,1738950633796,-500.0,0.00010958,2]
[352106285,1738950633806,-500.0,0.00010958,2]
[352106286,1738950633816,-500.0,0.00010958,2]
[352106287,1738950634010,-500.0,0.00010958,2]
[352106288,1738950634020,-500.0,0.00010958,2]
[352106289,1738950634031,-500.0,0.00010958,2]
[352106290,1738950634041,-500.0,0.00010958,2]
[352106291,1738950634051,-500.0,0.00010958,2]
[352106292,1738950634061,-500.0,0.00010958,2]
[352106293,1738950634071,-500.0,0.00010958,2]
[352106294,1738950634080,-1368.1,0.00010958,2]
[352106295,1738950634091,-617.14,0.00010958,2]
[352106296,1738950634100,-500.0,0.00010958,2]
[352106297,1738950634110,-843.95,0.00010958,2]
[352106298,1738950634120,-500.0,0.00010958,2]
[352106299,1738950634130,-500.0,0.00010958,2]
[352106300,1738950634140,-500.0,0.00010958,2]
[352106301,1738950634149,-500.0,0.00010958,2]
[352106302,1738950634160,-500.0,0.00010958,2]
[352106303,1738950634170,-500.0,0.00010958,2]